bitfinex-derivatives/quotes_SOLF0:USTF0_20220106
["timestamp","ask_amount","ask_price","bid_price","bid_amount"]
[1641427665950,91.93386327,153.6,153.56,0.73733376]
[1641427666153,91.93386327,153.6,153.51,49.02104499]
[1641427666650,91.93386327,153.6,153.52,8.0]
[1641427666852,27.66479,153.63,153.57,27.66479]
[1641427667153,91.0,153.64,153.57,27.66479]
[1641427667351,4.0,153.62,153.58,0.73599813]
[1641427667551,4.0,153.59,153.58,8.73599813]
[1641427667951,4.0,153.59,153.51,21.35625499]
[1641427668351,6.5072393,153.63,153.51,21.35625499]
[1641427668953,27.66479,153.62,153.52,8.7362366]
[1641427669353,27.66479,153.62,153.53,0.7362366]
[1641427669552,31.66479,153.62,153.53,0.7362366]
[1641427669754,34.35179,153.64,153.53,0.7362366]
[1641427669956,6.687,153.64,153.54,6.25208973]
[1641427670156,6.687,153.64,153.54,14.25208973]
[1641427670354,6.687,153.64,153.6,5.20830848]
[1641427670957,6.687,153.64,153.62,27.66479]
[1641427671555,6.687,153.64,153.63,0.7362366]
[1641427671955,6.687,153.64,153.63,5.94348077]
[1641427672457,4.0,153.69,153.66,5.20619929]
[1641427672657,27.66479,153.7,153.66,5.20619929]
[1641427672658,4.0,153.7,153.66,5.20619929]
[1641427672858,95.93386327,153.73,153.67,5.20583901]
[1641427673256,95.93386327,153.73,153.68,0.7362366]
[1641427673457,4.0,153.72,153.68,5.3622366]
[1641427673657,91.93386327,153.73,153.68,5.3622366]
[1641427673859,4.0,153.69,153.68,5.3622366]
[1641427674057,4.0,153.69,153.68,0.7362366]
[1641427674257,6.50300764,153.73,153.69,0.7362366]
[1641427674457,4.0,153.7,153.69,0.7362366]
[1641427674658,4.0,153.7,153.63,5.20710029]
[1641427674858,27.66479,153.68,153.66,5.20606543]
[1641427675258,27.66479,153.7,153.66,5.20606543]
[1641427675458,4.0,153.73,153.67,0.7362366]
[1641427675659,95.93386327,153.74,153.69,5.2049962]
[1641427675857,91.93386327,153.74,153.69,5.2049962]
[1641427676059,95.93386327,153.76,153.69,5.2049962]
[1641427676260,91.93386327,153.76,153.72,5.20402351]
[1641427676560,4.0,153.75,153.73,0.7362366]
[1641427677159,4.0,153.76,153.73,0.7362366]
[1641427677359,27.66479,153.79,153.73,5.94000091]
[1641427677759,27.66479,153.79,153.75,5.20311705]
[1641427677959,95.93386327,153.8,153.75,5.20311705]
[1641427678162,95.93386327,153.8,153.77,5.20240963]
[1641427678362,91.93386327,153.8,153.77,5.20240963]
[1641427678763,91.93386327,153.8,153.76,8.0]
[1641427679163,95.93386327,153.8,153.76,13.20271241]
[1641427679363,4.0,153.79,153.76,5.20271241]
[1641427679562,91.93386327,153.8,153.76,5.20271241]
[1641427679962,11.97279622,153.8,153.77,0.7353957]
[1641427680162,4.0,153.78,153.77,0.7353957]
[1641427680962,4.0,153.78,153.74,5.20334828]
[1641427681162,4.0,153.75,153.74,5.20334828]
[1641427681363,4.0,153.75,153.7,5.204646]
[1641427681562,131.57144949,153.81,153.68,55.32958]
[1641427681766,6.50237337,153.74,153.67,5.20587141]
[1641427681963,6.50152786,153.76,153.68,5.20555669]
[1641427682362,48.0742904,153.8,153.7,5.20461005]
[1641427682363,6.4998375,153.8,153.7,5.20461005]
[1641427682564,11.97279622,153.76,153.74,5.20331692]
[1641427683165,4.0,153.75,153.74,5.20331692]
[1641427683667,4.0,153.76,153.71,12.09385265]
[1641427684066,4.0,153.75,153.74,0.73553913]
[1641427684268,110.40649699,153.8,153.74,0.73553913]
[1641427684466,4.0,153.75,153.72,0.73553913]
[1641427685271,4.0,153.74,153.72,0.73553913]
[1641427685469,27.66479,153.77,153.72,0.73553913]
[1641427686169,95.93386327,153.79,153.72,0.73553913]
[1641427686468,11.97279622,153.76,153.72,0.73553913]
[1641427686669,11.97279622,153.76,153.68,26.601]
[1641427686872,11.97279622,153.76,153.74,27.66479]
[1641427687071,11.97279622,153.78,153.74,27.66479]
[1641427687272,9.622e-05,153.78,153.74,27.66479]
[1641427687470,91.93386327,153.82,153.74,34.15977263]
[1641427688172,114.72502941,153.86,153.75,0.73515687]
[1641427688373,4.0,153.86,153.75,0.73515687]
[1641427688776,91.93386327,153.88,153.75,0.73515687]
[1641427688974,4.0,153.85,153.82,5.20086742]
[1641427689173,91.93386327,153.88,153.82,5.20086742]
[1641427689376,4.0,153.83,153.82,5.20086742]
[1641427689574,8.0,153.83,153.77,6.24300664]
[1641427689775,4.0,153.78,153.71,7.49432485]
[1641427689974,6.50089387,153.78,153.71,7.49432485]
[1641427690376,4.0,153.75,153.72,0.73542284]
[1641427690576,4.0,153.76,153.72,0.73542284]
[1641427690777,4.0,153.8,153.76,5.20282229]
[1641427691177,4.0,153.81,153.79,5.20184933]
[1641427691378,95.0,153.82,153.79,5.20184933]
[1641427691579,95.93386327,153.83,153.82,5.2008522]
[1641427691981,90.73371295,153.84,153.82,5.2008522]
[1641427692681,4.0,153.84,153.82,5.2008522]
[1641427692982,27.66479,153.89,153.82,5.2008522]
[1641427693382,4.0,153.83,153.82,5.2008522]
[1641427693782,27.66479,153.89,153.82,5.2008522]
[1641427693982,4.0,153.83,153.82,5.2008522]
[1641427694182,27.66479,153.89,153.82,5.2008522]
[1641427694183,4.0,153.85,153.82,5.2008522]
[1641427694383,22.05387532,153.88,153.82,5.2008522]
[1641427694683,4.0,153.83,153.77,27.66479]
[1641427695084,4.0,153.83,153.78,0.7352126]
[1641427695284,27.66479,153.85,153.78,0.7352126]
[1641427695485,4.0,153.82,153.78,0.7352126]
[1641427695684,4.0,153.88,153.78,0.7352126]
[1641427695886,27.66479,153.89,153.79,6.24216591]
[1641427696284,22.05312642,153.88,153.8,0.7352126]
[1641427696784,4.0,153.81,153.8,0.7352126]
[1641427696984,31.66479,153.81,153.74,6.24423513]
[1641427697187,27.66479,153.81,153.74,6.24423513]
[1641427697385,4.0,153.78,153.74,6.24423513]
[1641427697587,27.66479,153.81,153.76,5.20273548]
[1641427697786,31.66479,153.81,153.76,5.20273548]
[1641427697987,4.0,153.84,153.79,5.20176194]
[1641427698186,4.0,153.84,153.82,5.20078022]
[1641427698687,4.0,153.83,153.82,5.20078022]
[1641427699987,4.0,153.84,153.82,5.20078022]
[1641427700194,27.66479,153.87,153.82,5.20078022]
[1641427700790,4.0,153.83,153.82,5.20078022]
[1641427703792,27.66479,153.87,153.84,5.19990742]
[1641427703992,91.87674785,153.89,153.84,5.19990742]
[1641427704393,4.0,153.85,153.84,5.19990742]
[1641427706398,4.0,153.85,153.84,0.39990742]
[1641427706597,4.0,153.85,153.81,6.2412938]
[1641427706797,4.0,153.84,153.81,6.2412938]
[1641427707398,91.87674785,153.89,153.81,6.2412938]
[1641427707599,4.0,153.85,153.81,6.2412938]
[1641427707801,11.95845698,153.89,153.81,6.2412938]
[1641427708000,11.95845698,153.89,153.78,29.12319474]
[1641427708300,11.95845698,153.89,153.78,27.66479]
[1641427708501,34.00974326,153.88,153.78,27.66479]
[1641427708800,4.0,153.85,153.78,27.66479]
[1641427709002,4.0,153.85,153.82,27.66479]
[1641427709200,15.95845698,153.88,153.78,27.66479]
[1641427710102,4.0,153.82,153.78,27.66479]
[1641427711202,4.0,153.82,153.81,27.66479]
[1641427711701,4.0,153.84,153.81,27.66479]
[1641427713108,4.0,153.84,153.78,27.66479]
[1641427713506,4.0,153.85,153.81,7.48960328]
[1641427713706,4.0,153.82,153.76,27.66479]
[1641427713906,18.4544944,153.89,153.76,27.66479]
[1641427714207,4.0,153.82,153.76,27.66479]
[1641427714506,59.1216029,153.87,153.75,13.5850305]
[1641427714908,4.0,153.82,153.75,13.5850305]
[1641427715109,4.0,153.82,153.78,27.66479]
[1641427715711,4.0,153.83,153.78,27.66479]
[1641427715911,55.1216029,153.84,153.78,27.66479]
[1641427716113,59.1216029,153.84,153.78,27.66479]
[1641427716313,4.0,153.84,153.78,27.66479]
[1641427716612,55.1216029,153.87,153.78,27.66479]
[1641427716813,4.0,153.82,153.78,27.66479]
[1641427717112,4.0,153.81,153.78,27.66479]
[1641427717313,4.0,153.79,153.75,13.5850305]
[1641427717515,4.0,153.76,153.75,13.5850305]
[1641427717713,4.0,153.76,153.75,4.59391308]
[1641427718914,4.0,153.77,153.68,4.59391308]
[1641427719114,59.1216029,153.8,153.74,27.66479]
[1641427719714,55.1216029,153.8,153.74,27.66479]
[1641427720116,59.1216029,153.81,153.74,27.66479]
[1641427720918,55.1216029,153.81,153.74,27.66479]
[1641427721117,55.1216029,153.81,153.8,27.66479]
[1641427721319,4.0,153.82,153.8,27.66479]
[1641427721518,4.0,153.81,153.76,7.49199018]
[1641427722120,4.0,153.8,153.76,7.49199018]
[1641427722722,55.1216029,153.83,153.76,7.49199018]
[1641427722723,59.1216029,153.83,153.76,7.49199018]
[1641427722922,4.0,153.77,153.71,4.59391308]
[1641427723123,27.66479,153.81,153.72,32.25870308]
[1641427723323,27.66479,153.81,153.72,4.59391308]
[1641427723723,31.66479,153.81,153.72,4.59391308]
[1641427723922,4.0,153.76,153.72,4.59391308]
[1641427724323,4.0,153.76,153.69,41.49353187]
[1641427724324,4.0,153.76,153.69,27.66479]
[1641427724522,4.0,153.77,153.69,27.66479]
[1641427724723,4.0,153.78,153.69,27.66479]
[1641427724925,4.0,153.76,153.69,27.66479]
[1641427725125,67.08005988,153.8,153.73,27.66479]
[1641427725126,4.0,153.77,153.73,27.66479]
[1641427725325,4.0,153.74,153.73,27.66479]
[1641427725525,67.08005988,153.8,153.73,27.66479]
[1641427726126,71.08005988,153.8,153.73,27.66479]
[1641427726426,4.0,153.74,153.73,27.66479]
[1641427726826,4.0,153.74,153.69,27.66479]
[1641427727026,4.0,153.7,153.68,4.59391308]
[1641427727227,4.0,153.73,153.68,4.59391308]
[1641427727228,4.0,153.69,153.68,4.59391308]
[1641427727427,34.16631786,153.76,153.68,4.59391308]
[1641427727628,4.0,153.76,153.68,4.59391308]
[1641427727927,4.0,153.69,153.65,4.59391308]
[1641427728129,68.8761,153.76,153.65,4.59391308]
[1641427728329,4.0,153.7,153.65,4.59391308]
[1641427728529,4.0,153.75,153.65,4.59391308]
[1641427728730,4.0,153.69,153.64,32.25870308]
[1641427728927,4.0,153.71,153.64,32.25870308]
[1641427729327,132.6308,153.76,153.64,32.25870308]
[1641427729528,4.0,153.74,153.64,32.25870308]
[1641427729726,132.6308,153.76,153.64,32.25870308]
[1641427729927,4.0,153.7,153.64,27.66479]
[1641427730931,4.0,153.72,153.64,27.66479]
[1641427731129,67.08005988,153.75,153.64,27.66479]
[1641427731130,67.08005988,153.75,153.68,27.66479]
[1641427731328,55.1216029,153.74,153.68,27.66479]
[1641427731529,4.0,153.7,153.68,27.66479]
[1641427731730,4.0,153.69,153.68,27.66479]
[1641427731928,4.0,153.69,153.62,4.59391308]
[1641427732130,4.0,153.67,153.62,4.59391308]
[1641427732328,4.0,153.67,153.64,4.59391308]
[1641427732730,4.0,153.65,153.64,4.59391308]
[1641427733534,4.0,153.65,153.58,9.80707682]
[1641427733730,34.16970121,153.68,153.58,9.80707682]
[1641427733930,4.0,153.59,153.58,9.80707682]
[1641427734331,8.0,153.59,153.58,4.59824588]
[1641427734530,8.0,153.59,153.55,13.82874187]
[1641427734730,6.50596923,153.66,153.53,20.08118499]
[1641427734931,4.0,153.6,153.53,20.08118499]
[1641427735332,27.66479,153.62,153.53,20.08118499]
[1641427735531,4.0,153.64,153.56,5.20964256]
[1641427735735,4.0,153.58,153.57,5.20903563]
[1641427735934,11.95845698,153.61,153.57,5.20903563]
[1641427736332,4.0,153.6,153.57,5.20903563]
[1641427736634,11.95845698,153.61,153.57,5.20903563]
[1641427736932,80.25542983,153.67,153.56,5.20964256]
[1641427737132,80.25542983,153.67,153.58,27.66479]
[1641427737335,4.0,153.61,153.58,27.66479]
[1641427737532,4.0,153.6,153.58,27.66479]
[1641427737732,4.0,153.66,153.56,32.87443256]
[1641427737733,4.0,153.59,153.56,32.87443256]
[1641427738033,4.0,153.65,153.56,27.66479]
[1641427738232,4.0,153.58,153.56,27.66479]
[1641427738432,4.0,153.63,153.56,27.66479]
[1641427738631,4.0,153.57,153.56,27.66479]
[1641427738835,4.0,153.64,153.56,27.66479]
[1641427739133,4.0,153.57,153.56,27.66479]
[1641427739332,27.66479,153.64,153.56,27.66479]
[1641427739532,4.0,153.57,153.56,27.66479]
[1641427740233,4.0,153.57,153.52,35.16853455]
[1641427740435,4.0,153.63,153.52,35.16853455]
[1641427740634,4.0,153.57,153.52,35.16853455]
[1641427740936,4.0,153.54,153.52,35.16853455]
[1641427741136,4.0,153.53,153.52,27.66479]
[1641427741535,4.0,153.53,153.5,13.82874187]
[1641427741736,4.0,153.56,153.5,13.82874187]
[1641427741935,4.0,153.51,153.5,13.82874187]
[1641427742535,4.0,153.51,153.47,19.04122753]
[1641427742735,5.20736844,153.63,153.47,19.04122753]
[1641427742736,4.0,153.5,153.47,19.04122753]
[1641427742935,4.0,153.58,153.5,1.21149473]
[1641427743135,4.0,153.55,153.49,27.66479]
[1641427743335,4.0,153.58,153.47,13.82874187]
[1641427743536,27.66479,153.59,153.49,10.25446052]
[1641427743739,55.1216029,153.61,153.49,10.25446052]
[1641427744537,59.1216029,153.61,153.49,20.08320239]
[1641427744737,4.0,153.61,153.49,24.08320239]
[1641427745037,4.0,153.62,153.49,24.08320239]
[1641427745237,4.0,153.62,153.53,27.66479]
[1641427745438,10.5072393,153.63,153.53,27.66479]
[1641427746139,4.0,153.63,153.53,27.66479]
[1641427746339,4.0,153.62,153.53,27.66479]
[1641427746541,4.0,153.6,153.53,27.66479]
[1641427746743,4.0,153.61,153.53,27.66479]
[1641427747542,4.0,153.6,153.53,27.66479]
[1641427747742,4.0,153.61,153.53,27.66479]
[1641427748142,59.1216029,153.63,153.53,27.66479]
[1641427748342,55.1216029,153.63,153.54,6.25208092]
[1641427748543,55.1216029,153.63,153.57,5.20929879]
[1641427748843,4.0,153.62,153.57,5.20929879]
[1641427749247,59.1216029,153.63,153.57,5.20929879]
[1641427749647,4.0,153.63,153.57,5.20929879]
[1641427749845,4.0,153.63,153.56,25.51457794]
[1641427750246,4.0,153.62,153.56,25.51457794]
[1641427750447,4.0,153.61,153.56,25.51457794]
[1641427750648,4.0,153.6,153.49,13.82874187]
[1641427750849,4.0,153.58,153.49,13.82874187]
[1641427751047,6.50829808,153.6,153.49,13.82874187]
[1641427751348,4.0,153.59,153.5,27.66479]
[1641427751950,10.50829808,153.6,153.5,27.66479]
[1641427752148,4.0,153.6,153.5,27.66479]
[1641427752449,61.62863049,153.63,153.5,27.66479]
[1641427752648,4.0,153.59,153.5,27.66479]
[1641427753150,4.0,153.57,153.5,27.66479]
[1641427753551,4.0,153.58,153.5,27.66479]
[1641427753752,4.0,153.59,153.5,27.66479]
[1641427754455,27.66479,153.61,153.5,27.66479]
[1641427754853,27.66479,153.61,153.51,4.0]
[1641427755055,55.1216029,153.62,153.56,5.20946507]
[1641427755255,55.1216029,153.62,153.59,27.66479]
[1641427755455,55.1216029,153.62,153.6,5.20812862]
[1641427755855,55.1216029,153.66,153.6,5.20812862]
[1641427756958,118.66479,153.69,153.6,5.20812862]
[1641427757157,4.0,153.64,153.6,5.20812862]
[1641427757357,4.0,153.63,153.54,20.08114286]
[1641427757559,4.0,153.65,153.56,5.20955662]
[1641427757757,6.5057576,153.66,153.56,5.20955662]
[1641427758759,6.5057576,153.66,153.59,5.20848963]
[1641427758960,4.0,153.65,153.59,5.20848963]
[1641427759259,4.0,153.65,153.59,27.66479]
[1641427760463,61.6273605,153.66,153.56,27.66479]
[1641427760667,4.0,153.64,153.53,5.21040684]
[1641427760868,4.0,153.65,153.57,5.20909241]
[1641427761068,4.0,153.66,153.57,5.20909241]
[1641427761268,27.66479,153.65,153.59,5.20840134]
[1641427761670,67.09571739,153.67,153.61,5.20795789]
[1641427762072,11.97411449,153.64,153.63,5.20703006]
[1641427762471,4.35794573,153.64,153.62,10.24905072]
[1641427762671,4.35794573,153.64,153.62,6.24905072]
[1641427763270,55.1216029,153.67,153.62,6.24905072]
[1641427763470,120.2782029,153.71,153.62,33.91384072]
[1641427763670,59.1216029,153.71,153.62,33.91384072]
[1641427763869,55.1216029,153.71,153.62,33.91384072]
[1641427764570,71.5865,153.72,153.62,37.91384072]
[1641427764971,71.5865,153.72,153.62,33.91384072]
[1641427765571,4.0,153.71,153.62,33.91384072]
[1641427766275,71.5865,153.72,153.62,33.91384072]
[1641427766473,55.1216029,153.71,153.62,33.91384072]
[1641427766874,55.1216029,153.71,153.63,4.0]
[1641427767075,55.1216029,153.71,153.67,6.24707183]
[1641427767373,55.1216029,153.71,153.7,27.66479]
[1641427767575,55.1216029,153.73,153.7,27.66479]
[1641427768375,55.1216029,153.73,153.72,4.0]
[1641427768576,37.7507029,153.73,153.72,4.0]
[1641427768776,27.66479,153.78,153.71,10.24522233]
[1641427768975,103.7328029,153.79,153.71,6.24522233]
[1641427769177,37.7507029,153.79,153.71,6.24522233]
[1641427769379,37.7507029,153.79,153.73,27.66479]
[1641427769577,37.7507029,153.79,153.73,31.66479]
[1641427770778,27.66479,153.8,153.73,31.66479]
[1641427770978,27.66479,153.8,153.75,6.24373187]
[1641427771380,27.66479,153.8,153.76,10.24330971]
[1641427771578,245.73643785,153.84,153.76,10.24330971]
[1641427771579,119.54153785,153.84,153.76,10.24330971]
[1641427771778,91.87674785,153.84,153.78,4.0]
[1641427771981,91.0,153.85,153.8,6.24167616]
[1641427772178,4.0,153.83,153.8,6.24167616]
[1641427772478,4.0,153.81,153.72,6.24494735]
[1641427772678,6.49835916,153.84,153.72,6.24494735]
[1641427772878,4.0,153.81,153.72,6.24494735]
[1641427773080,4.0,153.8,153.72,6.24494735]
[1641427773480,27.66479,153.76,153.72,6.24494735]
[1641427775879,27.66479,153.76,153.67,27.66479]
[1641427776179,27.66479,153.76,153.65,62.4346]
[1641427776680,31.66479,153.76,153.65,62.4346]
[1641427777379,4.0,153.74,153.65,62.4346]
[1641427777580,27.66479,153.71,153.63,8.99792796]
[1641427779583,27.66479,153.71,153.64,4.0]
[1641427779782,27.66479,153.71,153.63,8.99792796]
[1641427780184,27.66479,153.71,153.63,12.99792796]
[1641427780383,10.50110519,153.77,153.6,120.48604196]
[1641427780384,11.77697143,153.76,153.72,7.49399859]
[1641427780584,11.77697143,153.76,153.75,24.0]
[1641427780787,91.87674785,153.81,153.79,4.18491976]
[1641427780984,78.25674785,153.81,153.79,4.18491976]
[1641427781183,74.41674785,153.81,153.79,4.0]
[1641427781384,74.41674785,153.81,153.77,4.0]
[1641427781385,51.91674785,153.81,153.77,4.0]
[1641427781583,4.0,153.89,153.8,55.32958]
[1641427782486,4.0,153.87,153.8,55.32958]
[1641427782686,27.66479,153.94,153.8,55.32958]
[1641427782987,4.0,153.85,153.76,66.6797]
[1641427783187,4.0,153.86,153.74,13.77652638]
[1641427783686,27.66479,153.85,153.76,27.66479]
[1641427783886,4.0,153.81,153.76,27.66479]
[1641427784086,4.0,153.81,153.74,41.44131638]
[1641427784287,4.0,153.8,153.74,41.44131638]
[1641427784486,27.66479,153.85,153.74,41.44131638]
[1641427784686,4.0,153.84,153.74,27.66479]
[1641427784888,27.66479,153.85,153.74,27.66479]
[1641427785086,4.0,153.82,153.74,27.66479]
[1641427785890,15.93727641,153.84,153.74,27.66479]
[1641427786089,11.93727641,153.84,153.74,27.66479]
[1641427786690,11.93727641,153.84,153.75,4.0]
[1641427786889,11.93727641,153.84,153.74,33.90882961]
[1641427787090,11.93727641,153.84,153.74,40.40381224]
[1641427787490,11.93727641,153.84,153.74,33.90882961]
[1641427787690,11.93727641,153.84,153.79,27.66479]
[1641427788092,15.93727641,153.84,153.76,1.26682781]
[1641427788294,4.0,153.83,153.76,1.26682781]
[1641427788896,4.0,153.82,153.75,5.20321987]
[1641427789495,6.49730362,153.86,153.75,5.20321987]
[1641427789496,4.0,153.83,153.75,5.20321987]
[1641427789695,31.66479,153.83,153.75,5.20321987]
[1641427791000,11.93727641,153.82,153.75,5.20321987]
[1641427792096,11.93727641,153.82,153.77,5.20234143]
[1641427792297,11.93727641,153.82,153.79,5.2016233]
[1641427792898,59.12507339,153.87,153.79,5.2016233]
[1641427793299,4.0,153.86,153.79,5.2016233]
[1641427793499,59.12507339,153.87,153.79,5.2016233]
[1641427794701,55.12507339,153.87,153.79,5.2016233]
[1641427794902,55.12507339,153.87,153.83,5.20031649]
[1641427795301,55.12507339,153.87,153.86,5.19932401]
[1641427795903,49.92638159,153.87,153.86,60.52890401]
[1641427796103,49.92638159,153.87,153.86,55.32958]
[1641427796303,61.863658,153.93,153.86,55.32958]
[1641427796703,65.863658,153.93,153.86,55.32958]
[1641427797105,61.863658,153.93,153.86,55.32958]
[1641427797304,49.92638159,153.93,153.86,55.32958]
[1641427797504,4.0,153.92,153.86,55.32958]
[1641427797705,53.92638159,153.93,153.86,55.32958]
[1641427797905,4.0,153.92,153.86,55.32958]
[1641427799607,53.92638159,153.93,153.86,55.32958]
[1641427799806,4.0,153.88,153.86,27.66479]
[1641427800007,4.0,153.87,153.86,27.66479]
[1641427800408,4.0,153.87,153.8,4.59307591]
[1641427800608,4.0,153.88,153.8,4.59307591]
[1641427800811,4.0,153.87,153.78,4.59307591]
[1641427801008,4.0,153.84,153.78,4.59307591]
[1641427801410,4.0,153.8,153.78,4.59307591]
[1641427801611,10.49730362,153.86,153.78,4.59307591]
[1641427801810,27.66479,153.83,153.78,4.59307591]
[1641427802012,27.66479,153.83,153.78,5.8600994]
[1641427802211,27.66479,153.85,153.78,5.8600994]
[1641427802710,4.0,153.81,153.78,5.8600994]
[1641427802910,4.0,153.81,153.77,5.20247454]
[1641427803311,11.93727641,153.84,153.77,5.20247454]
[1641427803811,4.0,153.82,153.77,5.20247454]
[1641427804011,11.93727641,153.84,153.77,5.20247454]
[1641427804210,4.0,153.83,153.77,5.20247454]
[1641427804410,4.0,153.81,153.75,27.66479]
[1641427804611,4.0,153.83,153.75,27.66479]
[1641427805013,11.93727641,153.84,153.75,27.66479]
[1641427805614,15.93727641,153.84,153.75,27.66479]
[1641427806015,11.93727641,153.84,153.78,5.20222002]
[1641427807116,11.93727641,153.86,153.78,5.20222002]
[1641427807318,4.0,153.79,153.75,32.25786591]
[1641427807716,4.0,153.8,153.75,4.59307591]
[1641427808316,4.0,153.8,153.74,7.49279622]
[1641427808717,27.66479,153.81,153.74,7.49279622]
[1641427808917,55.11422056,153.84,153.77,5.20246125]
[1641427809217,11.93727641,153.8,153.77,5.20246125]
[1641427810120,4.0,153.84,153.77,32.86725125]
[1641427810318,73.54880059,153.86,153.74,10.83713525]
[1641427810518,6.49814803,153.84,153.74,4.59307591]
[1641427810720,4.0,153.82,153.71,13.77652638]
[1641427810922,4.0,153.79,153.75,4.59295364]
[1641427811122,4.0,153.76,153.75,4.59295364]
[1641427811324,4.0,153.76,153.72,13.77652638]
[1641427811524,4.0,153.74,153.72,13.77652638]
[1641427811727,6.50068257,153.78,153.72,13.77652638]
[1641427811922,27.66479,153.74,153.72,13.77652638]
[1641427812123,27.66479,153.74,153.68,36.80918694]
[1641427812424,27.66479,153.74,153.66,89.74359]
[1641427812625,27.66479,153.74,153.66,27.66479]
[1641427812922,31.66479,153.74,153.66,27.66479]
[1641427813122,27.66479,153.74,153.66,27.66479]
[1641427813322,31.66479,153.74,153.65,13.77652638]
[1641427813521,31.66479,153.74,153.67,1.26710248]
[1641427813522,4.0,153.69,153.67,1.26710248]
[1641427813722,4.0,153.68,153.64,13.77652638]
[1641427813922,31.66479,153.65,153.61,36.80918694]
[1641427814123,4.0,153.64,153.61,36.80918694]
[1641427814323,27.66479,153.65,153.61,13.78936294]
[1641427814724,4.0,153.64,153.57,36.80918694]
[1641427814925,27.66479,153.65,153.57,36.80918694]
[1641427815123,4.0,153.63,153.57,36.80918694]
[1641427815324,4.0,153.58,153.57,36.80918694]
[1641427815523,4.0,153.58,153.53,51.91693065]
[1641427815824,4.0,153.54,153.51,27.32510905]
[1641427816124,59.32958,153.52,153.51,27.32510905]
[1641427816524,65.84275289,153.52,153.47,46.91693065]
[1641427816725,4.0,153.48,153.47,43.31693065]
[1641427816922,4.0,153.48,153.42,91.87468821]
[1641427817123,4.0,153.46,153.42,91.87468821]
[1641427817323,4.0,153.45,153.42,91.87468821]
[1641427817526,4.0,153.45,153.31,6.51317289]
[1641427817527,4.0,153.45,153.33,99.38779535]
[1641427817725,61.84275289,153.52,153.33,99.38779535]
[1641427817726,4.0,153.44,153.33,99.38779535]
[1641427817925,27.66479,153.43,153.33,127.05258535]
[1641427818126,4.0,153.42,153.33,127.05258535]
[1641427818325,27.66479,153.43,153.34,3.68177808]
[1641427818726,27.66479,153.43,153.33,127.05258535]
[1641427818927,4.0,153.41,153.33,35.17789714]
[1641427819227,31.66479,153.43,153.33,35.17789714]
[1641427819528,4.0,153.39,153.3,15.07856797]
[1641427819727,4.0,153.4,153.3,15.07856797]
[1641427819927,6.51508242,153.44,153.3,15.07856797]
[1641427819928,27.66479,153.36,153.3,15.07856797]
[1641427820327,4.0,153.33,153.3,15.07856797]
[1641427820528,4.0,153.32,153.3,15.07856797]
[1641427820729,10.51975486,153.33,153.3,15.07856797]
[1641427820928,6.51975486,153.33,153.26,91.87468821]
[1641427821129,10.51975486,153.33,153.19,111.41704859]
[1641427821329,4.0,153.32,153.19,111.41704859]
[1641427821729,4.0,153.31,153.19,111.41704859]
[1641427821930,6.51975486,153.33,153.19,111.41704859]
[1641427822129,6.51975486,153.33,153.21,5.22148478]
[1641427822130,27.66479,153.27,153.21,5.22148478]
[1641427822731,27.66479,153.3,153.21,5.22148478]
[1641427823332,10.51869235,153.36,153.21,9.22148478]
[1641427823532,10.51869235,153.36,153.21,5.22148478]
[1641427823731,6.5199674,153.33,153.21,5.22148478]
[1641427823933,4.0,153.31,153.21,5.22148478]
[1641427824132,27.66479,153.3,153.21,5.22148478]
[1641427824933,27.66479,153.3,153.25,4.0]
[1641427825135,6.51529465,153.44,153.29,4.0]
[1641427825337,35.66117862,153.47,153.36,4.0]
[1641427825540,9.96,153.48,153.37,4.0]
[1641427825736,64.4421,153.53,153.39,9.21541107]
[1641427825937,64.4421,153.53,153.4,4.0]
[1641427826135,92.10689,153.53,153.44,27.66479]
[1641427826335,4.0,153.48,153.36,6.2593787]
[1641427827137,4.0,153.47,153.36,6.2593787]
[1641427828041,4.0,153.43,153.36,33.9241687]